[Event "Titled Tuesday Blitz August 15 Late 2023"]
[White "Grebeniuk, Semen"]
[Black "UgarteCesar"]
[WhiteFideId "14117509"]
[WhiteElo "2516"]
[BlackElo "2328"]
[Result "1-0"]
[Round "2"]
[TimeControl "180+1"]
[Date "2023.08.15"]
[WhiteClock "0:00:43"]
[BlackClock "0:00:30"]
[Board "118"]

1. d4 {[%clk 0:03:00]}  d5 {[%clk 0:02:59]} 2. c4 {[%clk 0:03:00]}  e6 {[%clk 0:02:59]} 3. Nc3 {[%clk 0:03:00]}  h6 {[%clk 0:02:59]} 4. cxd5 {[%clk 0:03:00]}  exd5 {[%clk 0:02:59]} 5. Nf3 {[%clk 0:03:00]}  c6 {[%clk 0:02:59]} 6. Bf4 {[%clk 0:03:01]}  Bd6 {[%clk 0:02:58]} 7. Bg3 {[%clk 0:03:01]}  Nf6 {[%clk 0:02:58]} 8. e3 {[%clk 0:03:01]}  O-O {[%clk 0:02:58]} 9. Qc2 {[%clk 0:03:01]}  Bxg3 {[%clk 0:02:54]} 10. hxg3 {[%clk 0:03:01]}  Nbd7 {[%clk 0:02:53]} 11. Bd3 {[%clk 0:03:01]}  Re8 {[%clk 0:02:53]} 12. O-O-O {[%clk 0:02:57]}  b5 {[%clk 0:02:52]} 13. Kb1 {[%clk 0:02:57]}  a5 {[%clk 0:02:52]} 14. Rc1 {[%clk 0:02:57]}  Bb7 {[%clk 0:02:50]} 15. Ne2 {[%clk 0:02:58]}  a4 {[%clk 0:02:48]} 16. Nf4 {[%clk 0:02:58]}  Nb6 {[%clk 0:02:47]} 17. Ne5 {[%clk 0:02:43]}  Nc4 {[%clk 0:02:47]} 18. Bxc4 {[%clk 0:02:38]}  bxc4 {[%clk 0:02:46]} 19. Ka1 {[%clk 0:02:30]}  a3 {[%clk 0:02:27]} 20. b3 {[%clk 0:02:29]}  Qd6 {[%clk 0:02:27]} 21. bxc4 {[%clk 0:02:27]}  Rxe5 {[%clk 0:02:27]} 22. c5 {[%clk 0:02:10]}  Qe7 {[%clk 0:02:22]} 23. dxe5 {[%clk 0:02:10]}  Qxe5+ {[%clk 0:02:23]} 24. Qc3 {[%clk 0:02:10]}  Qe7 {[%clk 0:02:16]} 25. Nh5 {[%clk 0:02:06]}  Ne8 {[%clk 0:02:07]} 26. Rh4 {[%clk 0:01:59]}  Bc8 {[%clk 0:02:06]} 27. Rb4 {[%clk 0:01:54]}  Bf5 {[%clk 0:02:04]} 28. Rb3 {[%clk 0:01:48]}  Qg5 {[%clk 0:01:54]} 29. Nf4 {[%clk 0:01:45]}  Nf6 {[%clk 0:01:25]} 30. Rxa3 {[%clk 0:01:45]}  Rc8 {[%clk 0:01:22]} 31. Ra4 {[%clk 0:01:34]}  Ne4 {[%clk 0:01:21]} 32. Qb2 {[%clk 0:01:34]}  Qe7 {[%clk 0:01:08]} 33. g4 {[%clk 0:01:19]}  Bh7 {[%clk 0:00:48]} 34. Ra5 {[%clk 0:01:11]}  Nf6 {[%clk 0:00:43]} 35. Nh5 {[%clk 0:01:07]}  Ne8 {[%clk 0:00:35]} 36. Ra4 {[%clk 0:01:03]}  Be4 {[%clk 0:00:33]} 37. f3 {[%clk 0:00:56]}  Bg6 {[%clk 0:00:33]} 38. Qd4 {[%clk 0:00:46]}  Nc7 {[%clk 0:00:30]} 39. Qxg7# {[%clk 0:00:43]} 1-0


[Site "https://www.chess.com"]

[Event "Titled Tuesday Blitz August 15 Late 2023"]
[White "Stachanczyk, Jacek"]
[Black "Arutla, Aditya"]
[WhiteFideId "1116657"]
[BlackFideId "30961998"]
[WhiteElo "2319"]
[BlackElo "2504"]
[Result "0-1"]
[Round "2"]
[TimeControl "180+1"]
[Date "2023.08.15"]
[WhiteClock "0:00:38"]
[BlackClock "0:00:39"]
[Board "123"]

1. e4 {[%clk 0:02:57]}  c5 {[%clk 0:03:00]} 2. Nf3 {[%clk 0:02:52]}  Nc6 {[%clk 0:03:00]} 3. d4 {[%clk 0:02:52]}  cxd4 {[%clk 0:02:59]} 4. Nxd4 {[%clk 0:02:53]}  Nf6 {[%clk 0:02:58]} 5. Nc3 {[%clk 0:02:52]}  e5 {[%clk 0:02:59]} 6. Ndb5 {[%clk 0:02:51]}  d6 {[%clk 0:02:59]} 7. Bg5 {[%clk 0:02:49]}  a6 {[%clk 0:02:59]} 8. Na3 {[%clk 0:02:46]}  b5 {[%clk 0:02:59]} 9. Nd5 {[%clk 0:02:46]}  Be7 {[%clk 0:02:59]} 10. Bxf6 {[%clk 0:02:46]}  Bxf6 {[%clk 0:03:00]} 11. c3 {[%clk 0:02:45]}  Bg5 {[%clk 0:03:01]} 12. Nc2 {[%clk 0:02:45]}  O-O {[%clk 0:03:01]} 13. a4 {[%clk 0:02:46]}  bxa4 {[%clk 0:02:58]} 14. Rxa4 {[%clk 0:02:46]}  Be6 {[%clk 0:02:58]} 15. Rxa6 {[%clk 0:02:29]}  Rxa6 {[%clk 0:02:57]} 16. Bxa6 {[%clk 0:02:30]}  Qa5 {[%clk 0:02:56]} 17. Bd3 {[%clk 0:02:08]}  Bxd5 {[%clk 0:02:46]} 18. exd5 {[%clk 0:02:07]}  Ne7 {[%clk 0:02:46]} 19. Nb4 {[%clk 0:01:55]}  g6 {[%clk 0:02:38]} 20. O-O {[%clk 0:01:52]}  Nxd5 {[%clk 0:02:33]} 21. Nc6 {[%clk 0:01:31]}  Qb6 {[%clk 0:02:15]} 22. Qf3 {[%clk 0:01:22]}  Qxc6 {[%clk 0:02:05]} 23. Be4 {[%clk 0:01:21]}  Qb6 {[%clk 0:01:46]} 24. Bxd5 {[%clk 0:01:20]}  Qxb2 {[%clk 0:01:45]} 25. g3 {[%clk 0:01:16]}  Bd2 {[%clk 0:01:40]} 26. c4 {[%clk 0:01:15]}  Bb4 {[%clk 0:01:36]} 27. h4 {[%clk 0:01:10]}  h5 {[%clk 0:01:36]} 28. Qf6 {[%clk 0:01:07]}  Qc2 {[%clk 0:01:25]} 29. Ra1 {[%clk 0:00:58]}  Bc5 {[%clk 0:01:19]} 30. Ra6 {[%clk 0:00:55]}  Qd3 {[%clk 0:01:11]} 31. Rc6 {[%clk 0:00:51]}  Qxg3+ {[%clk 0:01:10]} 32. Kf1 {[%clk 0:00:50]}  Qd3+ {[%clk 0:01:09]} 33. Kg1 {[%clk 0:00:50]}  Qf5 {[%clk 0:01:05]} 34. Qxf5 {[%clk 0:00:48]}  gxf5 {[%clk 0:01:06]} 35. Rc7 {[%clk 0:00:48]}  Kg7 {[%clk 0:01:03]} 36. Kg2 {[%clk 0:00:48]}  Kf6 {[%clk 0:01:00]} 37. Kf3 {[%clk 0:00:49]}  e4+ {[%clk 0:01:00]} 38. Ke2 {[%clk 0:00:48]}  Ke5 {[%clk 0:00:44]} 39. Rxf7 {[%clk 0:00:47]}  Rb8 {[%clk 0:00:40]} 40. Re7+ {[%clk 0:00:45]}  Kf4 {[%clk 0:00:39]} 41. Rg7 {[%clk 0:00:43]}  Rb2+ {[%clk 0:00:38]} 42. Ke1 {[%clk 0:00:41]}  Bxf2+ {[%clk 0:00:38]} 43. Kf1 {[%clk 0:00:38]}  Bxh4 {[%clk 0:00:39]} 0-1


[Site "https://www.chess.com"]

[Event "Titled Tuesday Blitz August 15 Late 2023"]
[White "Kujawski, Adam"]
[Black "Rengifo Blancas, Renzo Jhonathan"]
[WhiteFideId "1100920"]
[BlackFideId "3807185"]
[WhiteElo "2318"]
[BlackElo "2503"]
[Result "0-1"]
[Round "2"]
[TimeControl "180+1"]
[Date "2023.08.15"]
[WhiteClock "0:00:00"]
[BlackClock "0:01:25"]
[Board "124"]

1. e4 {[%clk 0:02:56]}  e5 {[%clk 0:03:00]} 2. Nf3 {[%clk 0:02:55]}  d6 {[%clk 0:03:01]} 3. d4 {[%clk 0:02:54]}  exd4 {[%clk 0:03:02]} 4. Nxd4 {[%clk 0:02:54]}  Nf6 {[%clk 0:03:03]} 5. Nc3 {[%clk 0:02:55]}  Be7 {[%clk 0:03:04]} 6. g3 {[%clk 0:02:55]}  O-O {[%clk 0:03:05]} 7. Bg2 {[%clk 0:02:55]}  c5 {[%clk 0:03:06]} 8. Nf5 {[%clk 0:02:37]}  Bxf5 {[%clk 0:03:05]} 9. exf5 {[%clk 0:02:38]}  Nc6 {[%clk 0:03:06]} 10. Be3 {[%clk 0:02:29]}  Re8 {[%clk 0:03:07]} 11. O-O {[%clk 0:02:24]}  Bf8 {[%clk 0:03:07]} 12. g4 {[%clk 0:02:06]}  h6 {[%clk 0:02:55]} 13. h3 {[%clk 0:02:01]}  Rc8 {[%clk 0:02:52]} 14. Qd2 {[%clk 0:02:00]}  Ne5 {[%clk 0:02:50]} 15. b3 {[%clk 0:01:48]}  b5 {[%clk 0:02:40]} 16. Nd5 {[%clk 0:01:11]}  c4 {[%clk 0:02:36]} 17. Rad1 {[%clk 0:01:01]}  cxb3 {[%clk 0:02:20]} 18. cxb3 {[%clk 0:00:59]}  Nxd5 {[%clk 0:02:16]} 19. Bxd5 {[%clk 0:00:52]}  Qh4 {[%clk 0:02:17]} 20. Kg2 {[%clk 0:00:24]}  Nxg4 {[%clk 0:02:16]} 21. hxg4 {[%clk 0:00:24]}  Qxg4+ {[%clk 0:02:17]} 22. Kh1 {[%clk 0:00:20]}  Qh5+ {[%clk 0:02:16]} 23. Kg1 {[%clk 0:00:20]}  Qxf5 {[%clk 0:02:12]} 24. Bg2 {[%clk 0:00:20]}  Re6 {[%clk 0:02:10]} 25. Qd3 {[%clk 0:00:20]}  Qg4 {[%clk 0:02:09]} 26. Qd4 {[%clk 0:00:17]}  Qh5 {[%clk 0:02:09]} 27. Qf4 {[%clk 0:00:09]}  Rg6 {[%clk 0:02:09]} 28. Qh2 {[%clk 0:00:09]}  Qf3 {[%clk 0:02:09]} 29. Rd4 {[%clk 0:00:08]}  d5 {[%clk 0:02:08]} 30. Rf4 {[%clk 0:00:08]}  Qe2 {[%clk 0:02:08]} 31. Qh3 {[%clk 0:00:07]}  Re8 {[%clk 0:02:03]} 32. Qf3 {[%clk 0:00:02]}  Qxf3 {[%clk 0:01:27]} 33. Rxf3 {[%clk 0:00:03]}  Rg4 {[%clk 0:01:26]} 34. Rf4 {[%clk 0:00:03]}  Rg6 {[%clk 0:01:26]} 35. Kh2 {[%clk 0:00:02]}  Bd6 {[%clk 0:01:26]} 36. Bxd5 {[%clk 0:00:00]}  Rf6 {[%clk 0:01:25]} 0-1


[Site "https://www.chess.com"]

[Event "Titled Tuesday Blitz August 15 Late 2023"]
[White "Soderstrom, Adrian"]
[Black "Okike, David"]
[WhiteFideId "1745786"]
[BlackFideId "8500134"]
[WhiteElo "2502"]
[BlackElo "2318"]
[Result "1-0"]
[Round "2"]
[TimeControl "180+1"]
[Date "2023.08.15"]
[WhiteClock "0:00:11"]
[BlackClock "0:00:13"]
[Board "125"]

1. h4 {[%clk 0:03:00]}  d5 {[%clk 0:02:48]} 2. d4 {[%clk 0:03:00]}  Nf6 {[%clk 0:02:46]} 3. Nc3 {[%clk 0:03:00]}  c6 {[%clk 0:02:46]} 4. Bf4 {[%clk 0:02:54]}  Bf5 {[%clk 0:02:46]} 5. e3 {[%clk 0:02:51]}  e6 {[%clk 0:02:46]} 6. Be2 {[%clk 0:02:51]}  Bd6 {[%clk 0:02:44]} 7. g4 {[%clk 0:02:39]}  Bxf4 {[%clk 0:02:40]} 8. exf4 {[%clk 0:02:40]}  Be4 {[%clk 0:02:35]} 9. f3 {[%clk 0:02:40]}  Qd6 {[%clk 0:02:35]} 10. fxe4 {[%clk 0:02:26]}  Qxf4 {[%clk 0:02:35]} 11. e5 {[%clk 0:02:26]}  Qg3+ {[%clk 0:02:35]} 12. Kf1 {[%clk 0:02:24]}  Ne4 {[%clk 0:02:33]} 13. Nxe4 {[%clk 0:02:21]}  dxe4 {[%clk 0:02:33]} 14. Qe1 {[%clk 0:02:16]}  Qe3 {[%clk 0:02:31]} 15. Qf2 {[%clk 0:02:07]}  Qd2 {[%clk 0:02:27]} 16. Kg2 {[%clk 0:01:59]}  Qxc2 {[%clk 0:02:24]} 17. Rf1 {[%clk 0:01:59]}  O-O {[%clk 0:02:22]} 18. h5 {[%clk 0:01:59]}  Nd7 {[%clk 0:02:15]} 19. Nh3 {[%clk 0:01:34]}  f6 {[%clk 0:02:14]} 20. exf6 {[%clk 0:01:28]}  Rxf6 {[%clk 0:02:12]} 21. Qe3 {[%clk 0:01:27]}  Qxb2 {[%clk 0:02:08]} 22. g5 {[%clk 0:01:24]}  Rxf1 {[%clk 0:01:55]} 23. Rxf1 {[%clk 0:01:25]}  Qxa2 {[%clk 0:01:55]} 24. Rf2 {[%clk 0:01:24]}  Qd5 {[%clk 0:01:54]} 25. Bg4 {[%clk 0:01:23]}  Rf8 {[%clk 0:01:52]} 26. Nf4 {[%clk 0:01:21]}  Qd6 {[%clk 0:01:52]} 27. Bxe6+ {[%clk 0:01:20]}  Kh8 {[%clk 0:01:53]} 28. Qxe4 {[%clk 0:01:05]}  Re8 {[%clk 0:00:58]} 29. h6 {[%clk 0:00:54]}  gxh6 {[%clk 0:00:50]} 30. g6 {[%clk 0:00:47]}  Nf8 {[%clk 0:00:45]} 31. g7+ {[%clk 0:00:23]}  Kxg7 {[%clk 0:00:44]} 32. Nh5+ {[%clk 0:00:20]}  Kh8 {[%clk 0:00:45]} 33. d5 {[%clk 0:00:17]}  Ng6 {[%clk 0:00:39]} 34. Qd4+ {[%clk 0:00:16]}  Qe5 {[%clk 0:00:40]} 35. Qxe5+ {[%clk 0:00:16]}  Nxe5 {[%clk 0:00:40]} 36. Re2 {[%clk 0:00:11]}  Ng6 {[%clk 0:00:36]} 37. d6 {[%clk 0:00:11]}  Rd8 {[%clk 0:00:35]} 38. d7 {[%clk 0:00:11]}  Nf8 {[%clk 0:00:35]} 39. Bf5 {[%clk 0:00:10]}  Nxd7 {[%clk 0:00:34]} 40. Re7 {[%clk 0:00:09]}  Nf8 {[%clk 0:00:29]} 41. Nf6 {[%clk 0:00:09]}  Rd6 {[%clk 0:00:20]} 42. Nxh7 {[%clk 0:00:08]}  Nxh7 {[%clk 0:00:16]} 43. Rxh7+ {[%clk 0:00:09]}  Kg8 {[%clk 0:00:17]} 44. Rxb7 {[%clk 0:00:09]}  Rf6 {[%clk 0:00:17]} 45. Bg4 {[%clk 0:00:10]}  c5 {[%clk 0:00:17]} 46. Rxa7 {[%clk 0:00:10]}  Rc6 {[%clk 0:00:17]} 47. Bf3 {[%clk 0:00:10]}  Rc7 {[%clk 0:00:17]} 48. Bd5+ {[%clk 0:00:11]}  Kg7 {[%clk 0:00:16]} 49. Rxc7+ {[%clk 0:00:11]}  Kf6 {[%clk 0:00:17]} 50. Rxc5 {[%clk 0:00:12]}  Ke5 {[%clk 0:00:17]} 51. Ba2+ {[%clk 0:00:12]}  Kd6 {[%clk 0:00:13]} 52. Rh5 {[%clk 0:00:11]} 1-0


[Site "https://www.chess.com"]

[Event "Titled Tuesday Blitz August 15 Late 2023"]
[White "szachmistrz2500"]
[Black "Daianu, Cristian-Clement"]
[BlackFideId "1208926"]
[WhiteElo "2492"]
[BlackElo "2303"]
[Result "1-0"]
[Round "2"]
[TimeControl "180+1"]
[Date "2023.08.15"]
[WhiteClock "0:02:31"]
[BlackClock "0:01:40"]
[Board "128"]

1. Nf3 {[%clk 0:03:00]}  d5 {[%clk 0:02:54]} 2. g3 {[%clk 0:03:01]}  e6 {[%clk 0:02:55]} 3. Bg2 {[%clk 0:03:02]}  f5 {[%clk 0:02:55]} 4. O-O {[%clk 0:03:01]}  Bd6 {[%clk 0:02:56]} 5. d3 {[%clk 0:03:02]}  c6 {[%clk 0:02:57]} 6. c4 {[%clk 0:03:00]}  Nf6 {[%clk 0:02:57]} 7. Nc3 {[%clk 0:03:00]}  O-O {[%clk 0:02:57]} 8. e4 {[%clk 0:03:00]}  fxe4 {[%clk 0:02:56]} 9. dxe4 {[%clk 0:03:00]}  dxc4 {[%clk 0:02:49]} 10. e5 {[%clk 0:03:00]}  Nd5 {[%clk 0:02:48]} 11. exd6 {[%clk 0:02:57]}  Qxd6 {[%clk 0:02:49]} 12. Qe2 {[%clk 0:02:52]}  b5 {[%clk 0:02:48]} 13. Ne4 {[%clk 0:02:50]}  Qe7 {[%clk 0:02:46]} 14. Be3 {[%clk 0:02:49]}  Nd7 {[%clk 0:02:46]} 15. Rad1 {[%clk 0:02:48]}  a5 {[%clk 0:02:45]} 16. Nd4 {[%clk 0:02:47]}  Bb7 {[%clk 0:02:43]} 17. Bg5 {[%clk 0:02:46]}  N7f6 {[%clk 0:02:15]} 18. Bh3 {[%clk 0:02:43]}  Bc8 {[%clk 0:01:49]} 19. Nxc6 {[%clk 0:02:40]}  Qc5 {[%clk 0:01:49]} 20. Ne5 {[%clk 0:02:31]}  Ra6 {[%clk 0:01:40]} 21. Nxc5 {[%clk 0:02:31]} 1-0


[Site "https://www.chess.com"]

[Event "Titled Tuesday Blitz August 15 Late 2023"]
[White "Young_Catalan_Player09"]
[Black "Michalczak, Thomas"]
[BlackFideId "4622634"]
[WhiteElo "2300"]
[BlackElo "2486"]
[Result "1-0"]
[Round "2"]
[TimeControl "180+1"]
[Date "2023.08.15"]
[WhiteClock "0:00:46"]
[BlackClock "0:00:04"]
[Board "132"]

1. d4 {[%clk 0:01:49]}  Nf6 {[%clk 0:02:58]} 2. Nf3 {[%clk 0:01:48]}  d5 {[%clk 0:02:58]} 3. g3 {[%clk 0:01:47]}  c5 {[%clk 0:02:41]} 4. Bg2 {[%clk 0:01:48]}  cxd4 {[%clk 0:02:33]} 5. O-O {[%clk 0:01:46]}  e6 {[%clk 0:02:08]} 6. Nxd4 {[%clk 0:01:45]}  Bc5 {[%clk 0:02:08]} 7. c4 {[%clk 0:01:39]}  O-O {[%clk 0:02:03]} 8. Nc3 {[%clk 0:01:36]}  dxc4 {[%clk 0:02:01]} 9. Ndb5 {[%clk 0:01:36]}  a6 {[%clk 0:01:56]} 10. Qa4 {[%clk 0:01:22]}  Bd7 {[%clk 0:01:48]} 11. Qxc4 {[%clk 0:01:21]}  Qb6 {[%clk 0:01:42]} 12. Na4 {[%clk 0:01:14]}  Bxf2+ {[%clk 0:01:07]} 13. Rxf2 {[%clk 0:01:10]}  Qxb5 {[%clk 0:01:06]} 14. Qxb5 {[%clk 0:01:07]}  Bxb5 {[%clk 0:01:05]} 15. Nb6 {[%clk 0:01:08]}  Ra7 {[%clk 0:00:59]} 16. Bg5 {[%clk 0:01:02]}  Ng4 {[%clk 0:00:50]} 17. Rf4 {[%clk 0:01:01]}  f6 {[%clk 0:00:42]} 18. Rxg4 {[%clk 0:00:58]}  fxg5 {[%clk 0:00:38]} 19. Rxg5 {[%clk 0:00:58]}  Nd7 {[%clk 0:00:29]} 20. Rxb5 {[%clk 0:00:57]}  axb5 {[%clk 0:00:25]} 21. Nxd7 {[%clk 0:00:57]}  Rd8 {[%clk 0:00:24]} 22. Nc5 {[%clk 0:00:57]}  b6 {[%clk 0:00:21]} 23. Nxe6 {[%clk 0:00:56]}  Rd2 {[%clk 0:00:21]} 24. Nf4 {[%clk 0:00:55]}  Rxb2 {[%clk 0:00:21]} 25. Bd5+ {[%clk 0:00:55]}  Kh8 {[%clk 0:00:20]} 26. Rd1 {[%clk 0:00:55]}  g5 {[%clk 0:00:18]} 27. Ne6 {[%clk 0:00:53]}  Rxe2 {[%clk 0:00:18]} 28. Rc1 {[%clk 0:00:52]}  h6 {[%clk 0:00:13]} 29. Bb3 {[%clk 0:00:47]}  Kh7 {[%clk 0:00:11]} 30. Nf8+ {[%clk 0:00:45]}  Kg7 {[%clk 0:00:11]} 31. Ne6+ {[%clk 0:00:46]}  Kf6 {[%clk 0:00:11]} 32. Nd4 {[%clk 0:00:45]}  Rd2 {[%clk 0:00:10]} 33. Rf1+ {[%clk 0:00:45]}  Ke5 {[%clk 0:00:10]} 34. Nc6+ {[%clk 0:00:45]}  Ke4 {[%clk 0:00:04]} 35. Nxa7 {[%clk 0:00:46]} 1-0


[Site "https://www.chess.com"]

[Event "Titled Tuesday Blitz August 15 Late 2023"]
[White "Pein, Malcolm"]
[Black "Kirillov, Dmitry"]
[WhiteFideId "400289"]
[BlackFideId "34180572"]
[WhiteElo "2286"]
[BlackElo "2483"]
[Result "0-1"]
[Round "2"]
[TimeControl "180+1"]
[Date "2023.08.15"]
[WhiteClock "0:00:00"]
[BlackClock "0:00:11"]
[Board "134"]

1. d4 {[%clk 0:03:00]}  e6 {[%clk 0:02:58]} 2. Nf3 {[%clk 0:03:01]}  f5 {[%clk 0:02:58]} 3. Nc3 {[%clk 0:03:00]}  Nf6 {[%clk 0:02:57]} 4. Bg5 {[%clk 0:03:00]}  Bb4 {[%clk 0:02:56]} 5. Qd3 {[%clk 0:02:55]}  d6 {[%clk 0:02:52]} 6. a3 {[%clk 0:02:55]}  Bxc3+ {[%clk 0:02:51]} 7. Qxc3 {[%clk 0:02:55]}  Nbd7 {[%clk 0:02:52]} 8. Qb3 {[%clk 0:02:54]}  Qe7 {[%clk 0:02:49]} 9. e3 {[%clk 0:02:41]}  h6 {[%clk 0:02:49]} 10. Bh4 {[%clk 0:02:38]}  g5 {[%clk 0:02:35]} 11. Bg3 {[%clk 0:02:38]}  Ne4 {[%clk 0:02:35]} 12. O-O-O {[%clk 0:02:17]}  h5 {[%clk 0:02:34]} 13. h4 {[%clk 0:02:08]}  g4 {[%clk 0:02:33]} 14. Ng5 {[%clk 0:02:03]}  Nxg3 {[%clk 0:02:31]} 15. fxg3 {[%clk 0:02:04]}  Nf6 {[%clk 0:02:30]} 16. Bc4 {[%clk 0:02:01]}  d5 {[%clk 0:02:30]} 17. Bb5+ {[%clk 0:01:47]}  c6 {[%clk 0:02:30]} 18. Bd3 {[%clk 0:01:48]}  b6 {[%clk 0:02:30]} 19. Kb1 {[%clk 0:01:48]}  Bb7 {[%clk 0:02:30]} 20. c4 {[%clk 0:01:48]}  O-O {[%clk 0:02:18]} 21. cxd5 {[%clk 0:01:38]}  cxd5 {[%clk 0:02:19]} 22. Qb4 {[%clk 0:01:35]}  Qxb4 {[%clk 0:02:18]} 23. axb4 {[%clk 0:01:36]}  a5 {[%clk 0:02:14]} 24. Nxe6 {[%clk 0:01:30]}  Rf7 {[%clk 0:02:05]} 25. b5 {[%clk 0:01:21]}  Re7 {[%clk 0:02:04]} 26. Nf4 {[%clk 0:01:12]}  Rxe3 {[%clk 0:02:04]} 27. Bxf5 {[%clk 0:01:13]}  Rxg3 {[%clk 0:02:04]} 28. Rhf1 {[%clk 0:01:09]}  Re8 {[%clk 0:01:54]} 29. Bg6 {[%clk 0:01:00]}  Ree3 {[%clk 0:01:46]} 30. Nxh5 {[%clk 0:00:47]}  Nxh5 {[%clk 0:01:45]} 31. Bxh5 {[%clk 0:00:48]}  Rxg2 {[%clk 0:01:44]} 32. Rf7 {[%clk 0:00:48]}  Bc8 {[%clk 0:00:35]} 33. Rdf1 {[%clk 0:00:40]}  Be6 {[%clk 0:00:35]} 34. Rf8+ {[%clk 0:00:18]}  Kg7 {[%clk 0:00:35]} 35. Re8 {[%clk 0:00:16]}  Bf5+ {[%clk 0:00:28]} 36. Ka1 {[%clk 0:00:15]}  Rxe8 {[%clk 0:00:23]} 37. Bxe8 {[%clk 0:00:15]}  Be4 {[%clk 0:00:19]} 38. h5 {[%clk 0:00:11]}  Kh6 {[%clk 0:00:18]} 39. Rf6+ {[%clk 0:00:10]}  Kg5 {[%clk 0:00:18]} 40. Rg6+ {[%clk 0:00:10]}  Kxh5 {[%clk 0:00:13]} 41. Rxb6+ {[%clk 0:00:07]}  Kg5 {[%clk 0:00:13]} 42. Rg6+ {[%clk 0:00:05]}  Bxg6 {[%clk 0:00:13]} 43. b6 {[%clk 0:00:02]}  Rg1+ {[%clk 0:00:11]} 44. Ka2 {[%clk 0:00:00]}  Re1 {[%clk 0:00:11]} 0-1


[Site "https://www.chess.com"]

[Event "Titled Tuesday Blitz August 15 Late 2023"]
[White "6PackPlayer"]
[Black "Molenda, Marcin"]
[BlackFideId "1173065"]
[WhiteElo "2281"]
[BlackElo "2480"]
[Result "1-0"]
[Round "2"]
[TimeControl "180+1"]
[Date "2023.08.15"]
[WhiteClock "0:00:12"]
[BlackClock "0:00:00"]
[Board "136"]

1. e4 {[%clk 0:03:00]}  e6 {[%clk 0:02:56]} 2. b3 {[%clk 0:02:58]}  d5 {[%clk 0:02:57]} 3. Bb2 {[%clk 0:02:59]}  dxe4 {[%clk 0:02:55]} 4. Nc3 {[%clk 0:02:59]}  Nf6 {[%clk 0:02:53]} 5. Qe2 {[%clk 0:03:00]}  a5 {[%clk 0:02:52]} 6. a4 {[%clk 0:02:57]}  Nc6 {[%clk 0:02:52]} 7. Nxe4 {[%clk 0:02:55]}  Be7 {[%clk 0:02:44]} 8. O-O-O {[%clk 0:02:52]}  Nxe4 {[%clk 0:02:29]} 9. Qxe4 {[%clk 0:02:53]}  Bf6 {[%clk 0:02:30]} 10. d4 {[%clk 0:02:50]}  O-O {[%clk 0:02:29]} 11. g4 {[%clk 0:02:50]}  Nb4 {[%clk 0:02:28]} 12. h4 {[%clk 0:02:47]}  Bd7 {[%clk 0:02:22]} 13. Rh3 {[%clk 0:02:43]}  Bc6 {[%clk 0:02:10]} 14. Qe2 {[%clk 0:02:40]}  Qd5 {[%clk 0:01:33]} 15. g5 {[%clk 0:02:38]}  Be7 {[%clk 0:01:33]} 16. Re3 {[%clk 0:02:29]}  Qh1 {[%clk 0:01:20]} 17. Nh3 {[%clk 0:02:24]}  Nd5 {[%clk 0:01:19]} 18. Rg3 {[%clk 0:02:21]}  Bd6 {[%clk 0:01:17]} 19. Bg2 {[%clk 0:02:06]}  Qh2 {[%clk 0:01:15]} 20. Rh1 {[%clk 0:02:05]}  Bxg3 {[%clk 0:01:15]} 21. Rxh2 {[%clk 0:02:01]}  Bxh2 {[%clk 0:01:16]} 22. h5 {[%clk 0:01:57]}  Nf4 {[%clk 0:01:09]} 23. Nxf4 {[%clk 0:01:56]}  Bxf4+ {[%clk 0:01:10]} 24. Kb1 {[%clk 0:01:56]}  Bxg2 {[%clk 0:01:10]} 25. Qg4 {[%clk 0:01:57]}  Bxg5 {[%clk 0:01:03]} 26. Qxg5 {[%clk 0:01:56]}  Be4 {[%clk 0:01:01]} 27. h6 {[%clk 0:01:57]}  Bg6 {[%clk 0:00:59]} 28. d5 {[%clk 0:01:57]}  f6 {[%clk 0:00:57]} 29. Qg3 {[%clk 0:01:47]}  exd5 {[%clk 0:00:51]} 30. hxg7 {[%clk 0:01:44]}  Kxg7 {[%clk 0:00:51]} 31. Qxc7+ {[%clk 0:01:45]}  Rf7 {[%clk 0:00:51]} 32. Qb6 {[%clk 0:01:44]}  Rc8 {[%clk 0:00:51]} 33. Bxf6+ {[%clk 0:01:41]}  Kg8 {[%clk 0:00:45]} 34. Bd4 {[%clk 0:01:31]}  Rxc2 {[%clk 0:00:44]} 35. Ka1 {[%clk 0:01:31]}  Be4 {[%clk 0:00:25]} 36. Qd8+ {[%clk 0:01:28]}  Rf8 {[%clk 0:00:25]} 37. Qe7 {[%clk 0:01:17]}  Rf7 {[%clk 0:00:20]} 38. Qg5+ {[%clk 0:01:15]}  Bg6 {[%clk 0:00:20]} 39. Qd8+ {[%clk 0:01:13]}  Rf8 {[%clk 0:00:19]} 40. Qxd5+ {[%clk 0:01:14]}  Rf7 {[%clk 0:00:19]} 41. Qe5 {[%clk 0:01:09]}  Kf8 {[%clk 0:00:19]} 42. Qb8+ {[%clk 0:01:06]}  Ke7 {[%clk 0:00:18]} 43. Qxb7+ {[%clk 0:01:05]}  Ke6 {[%clk 0:00:19]} 44. Qb6+ {[%clk 0:00:57]}  Kd5 {[%clk 0:00:19]} 45. Be3 {[%clk 0:00:58]}  Rfc7 {[%clk 0:00:16]} 46. Qxa5+ {[%clk 0:00:56]}  Ke4 {[%clk 0:00:16]} 47. Qa8+ {[%clk 0:00:54]}  Kd3 {[%clk 0:00:16]} 48. Qd5+ {[%clk 0:00:52]}  Ke2 {[%clk 0:00:16]} 49. a5 {[%clk 0:00:48]}  Bd3 {[%clk 0:00:13]} 50. Qh5+ {[%clk 0:00:44]}  Ke1 {[%clk 0:00:09]} 51. Qe5 {[%clk 0:00:27]}  R7c6 {[%clk 0:00:07]} 52. f4 {[%clk 0:00:21]}  Be2 {[%clk 0:00:06]} 53. Kb1 {[%clk 0:00:18]}  R2c3 {[%clk 0:00:05]} 54. Bd4 {[%clk 0:00:17]}  Rxb3+ {[%clk 0:00:05]} 55. Ka2 {[%clk 0:00:18]}  Rb5 {[%clk 0:00:02]} 56. Bc3+ {[%clk 0:00:12]}  Kd1 {[%clk 0:00:00]} 57. Qe3 {[%clk 0:00:12]} 1-0


[Site "https://www.chess.com"]

[Event "Titled Tuesday Blitz August 15 Late 2023"]
[White "Rodriguez Santiago, Jaime"]
[Black "MFatigue"]
[WhiteFideId "3100898"]
[WhiteElo "2277"]
[BlackElo "2475"]
[Result "0-1"]
[Round "2"]
[TimeControl "180+1"]
[Date "2023.08.15"]
[WhiteClock "0:00:42"]
[BlackClock "0:01:12"]
[Board "138"]

1. d4 {[%clk 0:03:00]}  d5 {[%clk 0:02:59]} 2. c4 {[%clk 0:02:58]}  c6 {[%clk 0:03:00]} 3. cxd5 {[%clk 0:02:57]}  cxd5 {[%clk 0:03:00]} 4. Bf4 {[%clk 0:02:57]}  Nf6 {[%clk 0:03:01]} 5. e3 {[%clk 0:02:57]}  Nc6 {[%clk 0:03:01]} 6. Nc3 {[%clk 0:02:56]}  Bg4 {[%clk 0:03:01]} 7. Qb3 {[%clk 0:02:53]}  Na5 {[%clk 0:03:02]} 8. Qa4+ {[%clk 0:02:53]}  Bd7 {[%clk 0:03:02]} 9. Qc2 {[%clk 0:02:53]}  Rc8 {[%clk 0:02:59]} 10. Bd3 {[%clk 0:02:42]}  b5 {[%clk 0:02:50]} 11. a3 {[%clk 0:02:40]}  e6 {[%clk 0:02:48]} 12. Qe2 {[%clk 0:02:25]}  a6 {[%clk 0:02:46]} 13. Rc1 {[%clk 0:02:22]}  Be7 {[%clk 0:02:34]} 14. Nf3 {[%clk 0:02:19]}  Nc4 {[%clk 0:02:22]} 15. O-O {[%clk 0:02:13]}  O-O {[%clk 0:02:17]} 16. a4 {[%clk 0:02:10]}  b4 {[%clk 0:02:15]} 17. Nb1 {[%clk 0:02:09]}  Bxa4 {[%clk 0:02:11]} 18. Bxc4 {[%clk 0:02:03]}  dxc4 {[%clk 0:02:12]} 19. Ne5 {[%clk 0:01:57]}  Bb5 {[%clk 0:01:46]} 20. Rfd1 {[%clk 0:01:51]}  c3 {[%clk 0:01:44]} 21. Qc2 {[%clk 0:01:50]}  cxb2 {[%clk 0:01:42]} 22. Qxb2 {[%clk 0:01:50]}  Qb6 {[%clk 0:01:38]} 23. h3 {[%clk 0:01:42]}  a5 {[%clk 0:01:38]} 24. Nd2 {[%clk 0:01:41]}  a4 {[%clk 0:01:27]} 25. Ndc4 {[%clk 0:01:40]}  Qa6 {[%clk 0:01:27]} 26. Nd2 {[%clk 0:01:22]}  a3 {[%clk 0:01:24]} 27. Qa2 {[%clk 0:01:19]}  Ba4 {[%clk 0:01:19]} 28. Nb3 {[%clk 0:00:42]}  Ne4 {[%clk 0:01:12]} 0-1


[Site "https://www.chess.com"]